[Event "26th OIBM 2023"]
[Site "Gmund am Tegernsee"]
[Date "2023.10.28"]
[Round "1.10"]
[White "Gallego Alcaraz, Andres Felipe"]
[Black "Restorff, Felix"]
[Result "1-0"]
[ECO "E04"]
[WhiteElo "2495"]
[BlackElo "2087"]
[Annotator "ChessBase"]
[PlyCount "63"]
[EventDate "2023.10.04"]
[EventType "swiss"]
[EventCountry "GER"]
[SourceTitle "playchess.com"]
[Source "ChessBase"]
[SourceQuality "1"]
[TimeControl "40/5400+30:1800+30"]

1. d4 {[%emt 0:00:22]} d5 {[%emt 0:00:18]} 2. Nf3 {[%emt 0:00:40]} Nf6 {[%emt 0:00:25]} 3. c4 {[%emt 0:00:24]} e6 {[%emt 0:00:29]} 4. g3 {[%emt 0:01:38]} dxc4 {[%emt 0:00:44]} 5. Bg2 {[%emt 0:01:55]} c5 {[%emt 0:01:13]} 6. O-O {[%emt 0:03:49]} Nc6 {[%emt 0:01:08]} 7. Qa4 {[%emt 0:01:35]} Bd7 {[%emt 0:02:05]} 8. Qxc4 {[%emt 0:02:28]} b5 {[%emt 0:00:56]} 9. Qd3 {[%emt 0:01:31]} c4 {[%emt 0:00:56]} 10. Qd1 {[%emt 0:03:04]} Rc8 {[%emt 0:02:04]} 11. Nc3 {[%emt 0:06:32]} b4 {[%emt 0:12:42]} 12. d5 {[%emt 0:04:34]} bxc3 {[%emt 0:20:03]} 13. dxc6 {[%emt 0:00:09]} Bxc6 {[%emt 0:00:10]} 14. Qxd8+ {[%emt 0:02:30]} Rxd8 {[%emt 0:02:53]} 15. bxc3 {[%emt 0:00:13]} Be7 {[%emt 0:02:07]} 16. Be3 {[%emt 0:06:26]} Rd7 {[%emt 0:08:54]} 17. Rfb1 {[%emt 0:05:17]} Ng4 {[%emt 0:09:07]} 18. Rb8+ {[%emt 0:01:53]} Bd8 {[%emt 0:00:08]} 19. Bc5 {[%emt 0:01:09]} f6 {[%emt 0:02:41]} 20. Bh3 {[%emt 0:04:34]} h5 {[%emt 0:03:09]} 21. Nd4 {[%emt 0:00:52]} Bd5 {[%emt 0:03:13]} 22. f3 {[%emt 0:01:02]} Ne5 {[%emt 0:00:53]} 23. Nxe6 {[%emt 0:09:42]} Bxe6 {[%emt 0:04:42]} 24. Bxe6 {[%emt 0:00:06]} Rd2 {[%emt 0:01:41]} 25. Kf1 {[%emt 0:04:49]} h4 {[%emt 0:01:44]} 26. g4 {[%emt 0:01:33]} Nd7 {[%emt 0:01:40]} 27. Bxd7+ {[%emt 0:01:10]} Rxd7 {[%emt 0:00:17]} 28. Rab1 {[%emt 0:00:34]} Kf7 {[%emt 0:01:16]} 29. R1b7 {[%emt 0:00:49]} Ke6 {[%emt 0:01:13]} 30. Rxd7 {[%emt 0:00:22]} Kxd7 {[%emt 0:00:08]} 31. Bxa7 {[%emt 0:00:16]} Kc7 {[%emt 0:00:55]} 32. a4 {[%emt 0:01:45]} 1-0

[Event "26th OIBM 2023"]
[Site "Gmund am Tegernsee"]
[Date "2023.10.28"]
[Round "1.11"]
[White "Tillmann, Markus"]
[Black "Ghazarian, Kirk"]
[Result "0-1"]
[ECO "E48"]
[WhiteElo "2085"]
[BlackElo "2473"]
[Annotator "ChessBase"]
[PlyCount "121"]
[EventDate "2023.10.04"]
[EventType "swiss"]
[EventCountry "GER"]
[SourceTitle "playchess.com"]
[Source "ChessBase"]
[SourceQuality "1"]
[TimeControl "40/5400+30:1800+30"]

1. d4 {[%emt 0:00:27]} Nf6 {[%emt 0:00:11]} 2. c4 {[%emt 0:00:56]} e6 {[%emt 0:00:06]} 3. Nc3 {[%emt 0:01:08]} Bb4 {[%emt 0:00:06]} 4. e3 {[%emt 0:00:26]} O-O {[%emt 0:00:08]} 5. Bd3 {[%emt 0:00:17]} Re8 {[%emt 0:00:58]} 6. Nge2 {[%emt 0:01:31]} d5 {[%emt 0:00:13]} 7. a3 {[%emt 0:04:01]} Bf8 {[%emt 0:00:23]} 8. O-O {[%emt 0:02:39]} b6 {[%emt 0:00:32]} 9. b4 {[%emt 0:00:58]} a5 {[%emt 0:02:20]} 10. b5 {[%emt 0:02:10]} c5 {[%emt 0:00:42]} 11. bxc6 {[%emt 0:02:36]} Nxc6 {[%emt 0:00:15]} 12. Bb2 {[%emt 0:01:55]} Bb7 {[%emt 0:07:16]} 13. Rc1 {[%emt 0:05:22]} Rc8 {[%emt 0:01:25]} 14. Qb3 {[%emt 0:02:13]} Ba6 {[%emt 0:05:26]} 15. Nb5 {[%emt 0:02:33]} Qd7 {[%emt 0:02:12]} 16. Rfd1 {[%emt 0:03:06]} Na7 {[%emt 0:07:15]} 17. Nxa7 {[%emt 0:03:22]} Qxa7 {[%emt 0:00:29]} 18. cxd5 {[%emt 0:06:25]} exd5 {[%emt 0:05:19]} 19. Nf4 {[%emt 0:05:34]} Bxd3 {[%emt 0:01:28]} 20. Nxd3 {[%emt 0:03:33]} Qa6 {[%emt 0:04:34]} 21. a4 {[%emt 0:02:45]} Rc4 {[%emt 0:03:38]} 22. Ne5 {[%emt 0:00:56]} Rb4 {[%emt 0:01:27]} 23. Qc2 {[%emt 0:02:45]} b5 {[%emt 0:00:27]} 24. axb5 {[%emt 0:14:42]} Rxb5 {[%emt 0:00:32]} 25. Qd3 {[%emt 0:13:37]} Qb7 {[%emt 0:03:34]} 26. Ba3 {[%emt 0:01:24]} Rb3 {[%emt 0:08:03]} 27. Rc3 {[%emt 0:00:07]} Rxc3 {[%emt 0:00:47]} 28. Qxc3 {[%emt 0:00:06]} Ne4 {[%emt 0:00:47]} 29. Qd3 {[%emt 0:03:45]} Bxa3 {[%emt 0:04:18]} 30. Qxa3 {[%emt 0:00:17]} Ra8 {[%emt 0:00:25]} 31. Nd3 {[%emt 0:01:16]} Qb5 {[%emt 0:00:44]} 32. f3 {[%emt 0:04:19]} Nf6 {[%emt 0:00:33]} 33. Nc5 {[%emt 0:01:39]} h5 {[%emt 0:03:38]} 34. Qd3 {[%emt 0:01:14]} Qc6 {[%emt 0:00:23]} 35. Ra1 {[%emt 0:02:23]} Ne8 {[%emt 0:03:09]} 36. Qc3 {[%emt 0:00:17]} Qb5 {[%emt 0:00:43]} 37. Qb3 {[%emt 0:01:08]} Qe2 {[%emt 0:01:26]} 38. Qd3 {[%emt 0:02:17]} Qb2 {[%emt 0:04:13]} 39. Rb1 {[%emt 0:01:22]} Qa2 {[%emt 0:00:06]} 40. Qb3 {[%emt 0:00:44]} Qe2 {[%emt 0:00:50]} 41. Qd3 {[%emt 0:30:18]} Qxd3 {[%emt 0:30:20]} 42. Nxd3 {[%emt 0:00:07]} a4 {[%emt 0:01:05]} 43. Kf2 {[%emt 0:01:44]} Nd6 {[%emt 0:02:19]} 44. Ke2 {[%emt 0:00:39]} a3 {[%emt 0:01:29]} 45. Ra1 {[%emt 0:01:08]} h4 {[%emt 0:01:41]} 46. Nb4 {[%emt 0:00:00]} Rb8 {[%emt 0:00:00]} 47. Nxd5 {[%emt 0:00:00]} Rb2+ {[%emt 0:00:00]} 48. Kd3 {[%emt 0:00:00]} Rxg2 {[%emt 0:00:00]} 49. Rxa3 {[%emt 0:00:00]} Rxh2 {[%emt 0:00:00]} 50. Ra8+ {[%emt 0:00:00]} Kh7 {[%emt 0:00:00]} 51. e4 {[%emt 0:00:00]} h3 {[%emt 0:00:00]} 52. Ra1 {[%emt 0:00:00]} g5 {[%emt 0:00:00]} 53. Nf6+ {[%emt 0:00:00]} Kg7 {[%emt 0:00:00]} 54. Ng4 {[%emt 0:00:00]} Rg2 {[%emt 0:00:00]} 55. Rh1 {[%emt 0:00:00]} Rg3 {[%emt 0:00:00]} 56. Ke3 {[%emt 0:00:00]} f5 {[%emt 0:00:00]} 57. exf5 {[%emt 0:00:00]} Nxf5+ {[%emt 0:00:00]} 58. Ke4 {[%emt 0:00:00]} Nh4 {[%emt 0:00:00]} 59. Ne5 {[%emt 0:00:00]} Kf6 {[%emt 0:00:00]} 60. d5 {[%emt 0:00:00]} Nf5 {[%emt 0:00:00]} 61. Ng4+ {[%emt 0:00:23]} 0-1

[Event "26th OIBM 2023"]
[Site "Gmund am Tegernsee"]
[Date "2023.10.28"]
[Round "1.12"]
[White "Vogel, Roven"]
[Black "Schulz, Michael"]
[Result "1-0"]
[ECO "D31"]
[WhiteElo "2471"]
[BlackElo "2221"]
[Annotator "ChessBase"]
[PlyCount "45"]
[EventDate "2023.10.04"]
[EventType "swiss"]
[EventCountry "GER"]
[SourceTitle "playchess.com"]
[Source "ChessBase"]
[SourceQuality "1"]
[TimeControl "40/5400+30:1800+30"]

1. d4 {[%emt 0:00:03]} d5 {[%emt 0:00:16]} 2. c4 {[%emt 0:00:07]} c6 {[%emt 0:00:12]} 3. Nf3 {[%emt 0:00:07]} e6 {[%emt 0:00:19]} 4. Nc3 {[%emt 0:02:23]} dxc4 {[%emt 0:00:08]} 5. g3 {[%emt 0:00:05]} b5 {[%emt 0:02:37]} 6. Bg2 {[%emt 0:00:29]} Bb7 {[%emt 0:00:38]} 7. Ne5 {[%emt 0:02:40]} Bb4 {[%emt 0:00:51]} 8. O-O {[%emt 0:00:53]} Qe7 {[%emt 0:06:12]} 9. a3 {[%emt 0:06:48]} Bxc3 {[%emt 0:14:32]} 10. bxc3 {[%emt 0:03:06]} a5 {[%emt 0:00:21]} 11. a4 {[%emt 0:11:27]} Nf6 {[%emt 0:02:24]} 12. Bd2 {[%emt 0:07:57]} O-O {[%emt 0:14:27]} 13. Qb1 {[%emt 0:00:28]} Nfd7 {[%emt 0:14:27]} 14. Nxc4 {[%emt 0:00:50]} e5 {[%emt 0:00:37]} 15. axb5 {[%emt 0:02:54]} exd4 {[%emt 0:00:27]} 16. Nxa5 {[%emt 0:05:17]} Qxe2 {[%emt 0:01:17]} 17. Bf4 {[%emt 0:01:27]} Rxa5 {[%emt 0:05:40]} 18. Rxa5 {[%emt 0:00:07]} dxc3 {[%emt 0:00:52]} 19. Rc1 {[%emt 0:06:14]} Rd8 {[%emt 0:03:22]} 20. Rxc3 {[%emt 0:06:06]} Nc5 {[%emt 0:01:48]} 21. Bf3 {[%emt 0:00:16]} Ne4 {[%emt 0:03:50]} 22. Bxe2 {[%emt 0:00:31]} Nxc3 {[%emt 0:00:06]} 23. Qc2 {[%emt 0:00:18]} 1-0

[Event "26th OIBM 2023"]
[Site "Gmund am Tegernsee"]
[Date "2023.10.28"]
[Round "1.13"]
[White "Butenandt, Svenja"]
[Black "Schneider, Ilja"]
[Result "1/2-1/2"]
[ECO "A90"]
[WhiteElo "2082"]
[BlackElo "2468"]
[Annotator "ChessBase"]
[PlyCount "47"]
[EventDate "2023.10.04"]
[EventType "swiss"]
[EventCountry "GER"]
[SourceTitle "playchess.com"]
[Source "ChessBase"]
[SourceQuality "1"]
[TimeControl "40/5400+30:1800+30"]

1. d4 {[%emt 0:00:05]} f5 {[%emt 0:02:50]} 2. c4 {[%emt 0:00:16]} e6 {[%emt 0:00:13]} 3. Nf3 {[%emt 0:00:07]} Nf6 {[%emt 0:00:15]} 4. g3 {[%emt 0:00:08]} d5 {[%emt 0:00:09]} 5. Bg2 {[%emt 0:00:16]} Bd6 {[%emt 0:00:12]} 6. O-O {[%emt 0:00:26]} O-O {[%emt 0:00:13]} 7. Bf4 {[%emt 0:00:49]} Bxf4 {[%emt 0:14:31]} 8. gxf4 {[%emt 0:00:03]} c6 {[%emt 0:00:14]} 9. Qc2 {[%emt 0:05:32]} Qe7 {[%emt 0:05:40]} 10. Ne5 {[%emt 0:08:49]} Ng4 {[%emt 0:11:01]} 11. Nd2 {[%emt 0:22:20]} Nxe5 {[%emt 0:03:09]} 12. dxe5 {[%emt 0:01:52]} b6 {[%emt 0:04:13]} 13. cxd5 {[%emt 0:04:04]} cxd5 {[%emt 0:01:32]} 14. Nc4 {[%emt 0:07:57]} g5 {[%emt 0:03:32]} 15. Nd6 {[%emt 0:01:38]} Ba6 {[%emt 0:00:44]} 16. b4 {[%emt 0:15:19]} Nd7 {[%emt 0:08:05]} 17. b5 {[%emt 0:00:54]} Bc8 {[%emt 0:01:37]} 18. Qc6 {[%emt 0:05:00]} Rb8 {[%emt 0:00:31]} 19. Qc7 {[%emt 0:02:41]} gxf4 {[%emt 0:02:09]} 20. Rac1 {[%emt 0:01:13]} Ra8 {[%emt 0:02:44]} 21. Qc6 {[%emt 0:04:22]} Rb8 {[%emt 0:00:14]} 22. Qc7 {[%emt 0:01:46]} Ra8 {[%emt 0:00:14]} 23. Qc6 {[%emt 0:08:11]} Rb8 {[%emt 0:00:05]} 24. Qc7 {[%emt 0:00:06]} 1/2-1/2

[Event "26th OIBM 2023"]
[Site "Gmund am Tegernsee"]
[Date "2023.10.28"]
[Round "1.14"]
[White "Golubka, Petro"]
[Black "Casadio, Niccolo`"]
[Result "1-0"]
[ECO "C02"]
[WhiteElo "2434"]
[BlackElo "2082"]
[Annotator "ChessBase"]
[PlyCount "57"]
[EventDate "2023.10.04"]
[EventType "swiss"]
[EventCountry "GER"]
[SourceTitle "playchess.com"]
[Source "ChessBase"]
[SourceQuality "1"]
[TimeControl "40/5400+30:1800+30"]

1. e4 {[%emt 0:03:44]} e6 {[%emt 0:00:05]} 2. d4 {[%emt 0:00:08]} d5 {[%emt 0:00:06]} 3. e5 {[%emt 0:00:05]} c5 {[%emt 0:00:05]} 4. c3 {[%emt 0:00:06]} Nc6 {[%emt 0:00:04]} 5. Nf3 {[%emt 0:00:05]} Bd7 {[%emt 0:00:06]} 6. Be2 {[%emt 0:00:07]} f6 {[%emt 0:00:11]} 7. O-O {[%emt 0:00:14]} fxe5 {[%emt 0:00:13]} 8. Nxe5 {[%emt 0:00:09]} Nxe5 {[%emt 0:00:09]} 9. dxe5 {[%emt 0:00:02]} Qc7 {[%emt 0:00:09]} 10. Re1 {[%emt 0:00:04]} O-O-O {[%emt 0:00:33]} 11. Bf1 {[%emt 0:01:37]} Ne7 {[%emt 0:01:55]} 12. a4 {[%emt 0:00:05]} Nc6 {[%emt 0:02:28]} 13. Na3 {[%emt 0:00:06]} a6 {[%emt 0:03:36]} 14. Nb5 {[%emt 0:00:42]} axb5 {[%emt 0:09:52]} 15. axb5 {[%emt 0:00:05]} Nb8 {[%emt 0:00:07]} 16. c4 {[%emt 0:01:03]} dxc4 {[%emt 0:07:34]} 17. Qa4 {[%emt 0:00:12]} Be7 {[%emt 0:04:43]} 18. Bxc4 {[%emt 0:00:28]} Rhf8 {[%emt 0:01:22]} 19. Qa8 {[%emt 0:06:00]} Rf5 {[%emt 0:05:02]} 20. Ra7 {[%emt 0:12:08]} Bg5 {[%emt 0:02:22]} 21. Bd3 {[%emt 0:03:05]} Bc6 {[%emt 0:04:04]} 22. bxc6 {[%emt 0:20:53]} Rxd3 {[%emt 0:00:21]} 23. Rxb7 {[%emt 0:00:06]} Qxe5 {[%emt 0:00:17]} 24. Rxb8+ {[%emt 0:00:05]} Qxb8 {[%emt 0:00:13]} 25. Qa6+ {[%emt 0:00:06]} Kc7 {[%emt 0:00:20]} 26. Qxd3 {[%emt 0:00:04]} Bxc1 {[%emt 0:04:55]} 27. Qd7+ {[%emt 0:03:18]} Kb6 {[%emt 0:00:02]} 28. c7 {[%emt 0:00:53]} Qxc7 {[%emt 0:00:03]} 29. Rxe6+ {[%emt 0:00:33]} 1-0

[Event "26th OIBM 2023"]
[Site "Gmund am Tegernsee"]
[Date "2023.10.28"]
[Round "1.15"]
[White "Schoetzig, Detlef"]
[Black "Meins, Gerlef"]
[Result "0-1"]
[ECO "A46"]
[WhiteElo "2078"]
[BlackElo "2412"]
[Annotator "ChessBase"]
[PlyCount "118"]
[EventDate "2023.10.04"]
[EventType "swiss"]
[EventCountry "GER"]
[SourceTitle "playchess.com"]
[Source "ChessBase"]
[SourceQuality "1"]
[TimeControl "40/5400+30:1800+30"]

1. d4 {[%emt 0:00:05]} Nf6 {[%emt 0:00:13]} 2. Nf3 {[%emt 0:00:22]} e6 {[%emt 0:00:28]} 3. g3 {[%emt 0:00:27]} b5 {[%emt 0:01:05]} 4. Bg2 {[%emt 0:00:57]} Bb7 {[%emt 0:00:50]} 5. O-O {[%emt 0:00:12]} c5 {[%emt 0:01:09]} 6. Bf4 {[%emt 0:03:25]} cxd4 {[%emt 0:32:19]} 7. Qxd4 {[%emt 0:03:24]} Nc6 {[%emt 0:02:50]} 8. Qd3 {[%emt 0:05:26]} Nb4 {[%emt 0:04:18]} 9. Qd1 {[%emt 0:12:24]} Rc8 {[%emt 0:05:00]} 10. c3 {[%emt 0:10:14]} Nbd5 {[%emt 0:00:49]} 11. Bc1 {[%emt 0:12:31]} Nb6 {[%emt 0:08:05]} 12. Nbd2 {[%emt 0:09:00]} a6 {[%emt 0:04:02]} 13. Nb3 {[%emt 0:01:41]} Na4 {[%emt 0:06:14]} 14. Qd4 {[%emt 0:04:34]} Be7 {[%emt 0:04:14]} 15. Rd1 {[%emt 0:06:23]} Qb6 {[%emt 0:05:48]} 16. Ne5 {[%emt 0:06:38]} Bxg2 {[%emt 0:01:20]} 17. Kxg2 {[%emt 0:01:04]} Qxd4 {[%emt 0:04:12]} 18. Rxd4 {[%emt 0:00:18]} d6 {[%emt 0:00:55]} 19. Nf3 {[%emt 0:00:36]} h6 {[%emt 0:01:30]} 20. Rb1 {[%emt 0:00:38]} d5 {[%emt 0:03:47]} 21. Ne5 {[%emt 0:07:21]} Ne4 {[%emt 0:00:55]} 22. f3 {[%emt 0:02:21]} Bf6 {[%emt 0:01:39]} 23. f4 {[%emt 0:01:42]} Bxe5 {[%emt 0:02:29]} 24. fxe5 {[%emt 0:00:02]} Nb6 {[%emt 0:00:34]} 25. Nd2 {[%emt 0:00:47]} Nxd2 {[%emt 0:00:28]} 26. Bxd2 {[%emt 0:00:08]} Nc4 {[%emt 0:00:15]} 27. e4 {[%emt 0:01:51]} dxe4 {[%emt 0:00:19]} 28. Be1 {[%emt 0:01:52]} e3 {[%emt 0:01:43]} 29. Kf3 {[%emt 0:00:29]} Ke7 {[%emt 0:01:22]} 30. b3 {[%emt 0:03:45]} Nd2+ {[%emt 0:03:00]} 31. Bxd2 {[%emt 0:00:04]} exd2 {[%emt 0:00:05]} 32. Rxd2 {[%emt 0:00:23]} Rxc3+ {[%emt 0:00:25]} 33. Ke4 {[%emt 0:00:04]} Rhc8 {[%emt 0:00:39]} 34. Rbd1 {[%emt 0:00:07]} R8c7 {[%emt 0:00:33]} 35. Rd6 {[%emt 0:01:36]} Rc2 {[%emt 0:00:44]} 36. R1d2 {[%emt 0:01:03]} Rxd2 {[%emt 0:02:15]} 37. Rxd2 {[%emt 0:00:03]} f5+ {[%emt 0:00:42]} 38. exf6+ {[%emt 0:01:55]} gxf6 {[%emt 0:00:03]} 39. Rf2 {[%emt 0:00:34]} h5 {[%emt 0:01:02]} 40. Kd4 {[%emt 0:01:40]} f5 {[%emt 0:01:17]} 41. a4 {[%emt 0:05:13]} bxa4 {[%emt 0:02:49]} 42. bxa4 {[%emt 0:00:29]} Kd6 {[%emt 0:01:41]} 43. Rb2 {[%emt 0:01:35]} e5+ {[%emt 0:02:08]} 44. Kd3 {[%emt 0:00:17]} Kd5 {[%emt 0:04:46]} 45. Rb8 {[%emt 0:01:04]} e4+ {[%emt 0:01:05]} 46. Kd2 {[%emt 0:00:56]} h4 {[%emt 0:21:24]} 47. Rf8 {[%emt 0:13:42]} Ke5 {[%emt 0:00:00]} 48. Re8+ {[%emt 0:00:22]} Kd4 {[%emt 0:00:00]} 49. Rd8+ {[%emt 0:00:05]} Kc4 {[%emt 0:00:00]} 50. gxh4 {[%emt 0:02:45]} Rh7 {[%emt 0:02:00]} 51. Rf8 {[%emt 0:05:48]} Rh5 {[%emt 0:00:00]} 52. Ra8 {[%emt 0:00:23]} Rxh4 {[%emt 0:00:00]} 53. Rxa6 {[%emt 0:00:04]} Kd4 {[%emt 0:00:00]} 54. Rd6+ {[%emt 0:02:32]} Ke5 {[%emt 0:00:00]} 55. Rd8 {[%emt 0:00:47]} Rxh2+ {[%emt 0:00:00]} 56. Kd1 {[%emt 0:02:59]} Ra2 {[%emt 0:00:00]} 57. Ra8 {[%emt 0:00:06]} Kf4 {[%emt 0:00:00]} 58. a5 {[%emt 0:00:07]} e3 {[%emt 0:00:00]} 59. a6 {[%emt 0:00:39]} Kf3 {[%emt 0:00:00]} 0-1

[Event "26th OIBM 2023"]
[Site "Gmund am Tegernsee"]
[Date "2023.10.28"]
[Round "1.16"]
[White "Weishaeutel, Moritz"]
[Black "Esswein, Karlheinz"]
[Result "1-0"]
[ECO "B06"]
[WhiteElo "2403"]
[BlackElo "2077"]
[Annotator "ChessBase"]
[PlyCount "45"]
[EventDate "2023.10.04"]
[EventType "swiss"]
[EventCountry "GER"]
[SourceTitle "playchess.com"]
[Source "ChessBase"]
[SourceQuality "1"]
[TimeControl "40/5400+30:1800+30"]

1. d4 {[%emt 0:00:03]} d6 {[%emt 0:00:27]} 2. e4 {[%emt 0:00:35]} g6 {[%emt 0:00:11]} 3. Nc3 {[%emt 0:00:37]} Bg7 {[%emt 0:00:09]} 4. Bg5 {[%emt 0:00:27]} a6 {[%emt 0:00:56]} 5. Qd2 {[%emt 0:03:06]} Nd7 {[%emt 0:03:31]} 6. O-O-O {[%emt 0:03:46]} b5 {[%emt 0:03:10]} 7. Nf3 {[%emt 0:02:47]} Bb7 {[%emt 0:03:38]} 8. Qe1 {[%emt 0:12:29]} Qc8 {[%emt 0:05:55]} 9. e5 {[%emt 0:14:38]} Bxf3 {[%emt 0:07:31]} 10. gxf3 {[%emt 0:00:07]} dxe5 {[%emt 0:00:25]} 11. Bh3 {[%emt 0:00:51]} f5 {[%emt 0:04:25]} 12. dxe5 {[%emt 0:05:55]} Nb6 {[%emt 0:11:01]} 13. f4 {[%emt 0:02:23]} Qe6 {[%emt 0:04:48]} 14. Bg2 {[%emt 0:03:17]} c6 {[%emt 0:02:10]} 15. Qe3 {[%emt 0:00:59]} Nd7 {[%emt 0:02:27]} 16. Nd5 {[%emt 0:03:29]} Rc8 {[%emt 0:00:36]} 17. Nb6 {[%emt 0:00:16]} Nxb6 {[%emt 0:01:25]} 18. Qxb6 {[%emt 0:00:05]} Kf7 {[%emt 0:02:23]} 19. Kb1 {[%emt 0:03:07]} Nh6 {[%emt 0:02:05]} 20. Qb7 {[%emt 0:06:53]} Rhe8 {[%emt 0:00:25]} 21. Rd6 {[%emt 0:01:37]} Qc4 {[%emt 0:01:59]} 22. Bxc6 {[%emt 0:01:06]} Kf8 {[%emt 0:00:35]} 23. Bxe7+ {[%emt 0:00:10]} 1-0

[Event "26th OIBM 2023"]
[Site "Gmund am Tegernsee"]
[Date "2023.10.28"]
[Round "1.17"]
[White "Wecker, Martin"]
[Black "Schmider, Niklas"]
[Result "0-1"]
[ECO "E05"]
[WhiteElo "2075"]
[BlackElo "2395"]
[Annotator "ChessBase"]
[PlyCount "54"]
[EventDate "2023.10.04"]
[EventType "swiss"]
[EventCountry "GER"]
[SourceTitle "playchess.com"]
[Source "ChessBase"]
[SourceQuality "1"]
[TimeControl "40/5400+30:1800+30"]

1. d4 {[%emt 0:00:07]} Nf6 {[%emt 0:00:25]} 2. c4 {[%emt 0:00:04]} e6 {[%emt 0:00:27]} 3. Nf3 {[%emt 0:00:10]} d5 {[%emt 0:00:09]} 4. g3 {[%emt 0:00:11]} Be7 {[%emt 0:00:33]} 5. Bg2 {[%emt 0:00:45]} O-O {[%emt 0:00:13]} 6. O-O {[%emt 0:00:38]} dxc4 {[%emt 0:00:22]} 7. Qc2 {[%emt 0:02:00]} a6 {[%emt 0:03:23]} 8. a4 {[%emt 0:01:02]} Bd7 {[%emt 0:00:10]} 9. Rd1 {[%emt 0:03:24]} Bc6 {[%emt 0:05:46]} 10. Nc3 {[%emt 0:05:22]} Nbd7 {[%emt 0:04:37]} 11. e4 {[%emt 0:01:52]} b5 {[%emt 0:04:30]} 12. d5 {[%emt 0:16:10]} exd5 {[%emt 0:00:33]} 13. e5 {[%emt 0:02:13]} Ne4 {[%emt 0:15:18]} 14. Nxd5 {[%emt 0:02:09]} Ndc5 {[%emt 0:18:05]} 15. Nf6+ {[%emt 0:08:04]} gxf6 {[%emt 0:00:56]} 16. Rxd8 {[%emt 0:00:47]} Raxd8 {[%emt 0:08:51]} 17. Be3 {[%emt 0:08:40]} Nb3 {[%emt 0:04:27]} 18. Rf1 {[%emt 0:18:15]} Bc5 {[%emt 0:11:37]} 19. Bxc5 {[%emt 0:02:31]} Nbxc5 {[%emt 0:00:17]} 20. Qe2 {[%emt 0:05:32]} Rfe8 {[%emt 0:00:39]} 21. Nh4 {[%emt 0:08:43]} Rxe5 {[%emt 0:00:55]} 22. f4 {[%emt 0:02:29]} Ree8 {[%emt 0:02:23]} 23. Rd1 {[%emt 0:03:38]} Rd3 {[%emt 0:04:41]} 24. Nf5 {[%emt 0:01:00]} Nf2 {[%emt 0:06:32]} 25. Ne7+ {[%emt 0:02:59]} Rxe7 {[%emt 0:00:38]} 26. Qxe7 {[%emt 0:00:03]} Rxd1+ {[%emt 0:00:08]} 27. Kxf2 {[%emt 0:00:18]} Nd3+ {[%emt 0:00:03]} 0-1

[Event "26th OIBM 2023"]
[Site "Gmund am Tegernsee"]
[Date "2023.10.28"]
[Round "1.18"]
[White "Kargin, Arseny"]
[Black "Schatz, Dieter"]
[Result "1-0"]
[ECO "C10"]
[WhiteElo "2391"]
[BlackElo "2074"]
[Annotator "ChessBase"]
[PlyCount "47"]
[EventDate "2023.10.04"]
[EventType "swiss"]
[EventCountry "GER"]
[SourceTitle "playchess.com"]
[Source "ChessBase"]
[SourceQuality "1"]
[TimeControl "40/5400+30:1800+30"]

1. e4 {[%emt 0:00:20]} e6 {[%emt 0:00:16]} 2. d4 {[%emt 0:00:17]} d5 {[%emt 0:00:07]} 3. Nc3 {[%emt 0:00:22]} Nc6 {[%emt 0:00:13]} 4. Nf3 {[%emt 0:03:50]} Nf6 {[%emt 0:00:47]} 5. Bd3 {[%emt 0:00:08]} Bb4 {[%emt 0:00:34]} 6. O-O {[%emt 0:01:08]} Bxc3 {[%emt 0:02:18]} 7. exd5 {[%emt 0:00:11]} exd5 {[%emt 0:14:47]} 8. bxc3 {[%emt 0:00:57]} O-O {[%emt 0:01:02]} 9. h3 {[%emt 1:27:47]} Re8 {[%emt 1:14:56]} 10. Bf4 {[%emt 0:00:00]} Ne4 {[%emt 0:00:00]} 11. Re1 {[%emt 0:01:00]} Bf5 {[%emt 0:01:00]} 12. c4 {[%emt 0:00:00]} Nb4 {[%emt 0:00:30]} 13. Qb1 {[%emt 0:01:00]} a5 {[%emt 0:00:30]} 14. Qb3 {[%emt 0:00:00]} Rc8 {[%emt 0:00:00]} 15. cxd5 {[%emt 0:00:00]} Nxd5 {[%emt 0:00:00]} 16. Be5 {[%emt 0:00:00]} Ndc3 {[%emt 0:00:00]} 17. Qxb7 {[%emt 0:00:00]} Nd6 18. Bxd6 {[%emt 0:02:30]} Bxd3 {[%emt 0:00:00]} 19. Bxc7 {[%emt 0:00:00]} Qd7 {[%emt 0:00:00]} 20. cxd3 {[%emt 0:00:00]} Ne2+ {[%emt 0:00:00]} 21. Rxe2 {[%emt 0:00:00]} Rxe2 {[%emt 0:00:00]} 22. Rd1 {[%emt 0:00:00]} Rxa2 {[%emt 0:00:00]} 23. d5 {[%emt 0:00:00]} h6 {[%emt 0:00:00]} 24. d6 {[%emt 0:00:00]} 1-0

[Event "26th OIBM 2023"]
[Site "Gmund am Tegernsee"]
[Date "2023.10.28"]
[Round "1.19"]
[White "Hanisch, Sebastian"]
[Black "Colpe, Malte"]
[Result "0-1"]
[ECO "D02"]
[WhiteElo "2070"]
[BlackElo "2386"]
[Annotator "ChessBase"]
[PlyCount "76"]
[EventDate "2023.10.04"]
[EventType "swiss"]
[EventCountry "GER"]
[SourceTitle "playchess.com"]
[Source "ChessBase"]
[SourceQuality "1"]
[TimeControl "40/5400+30:1800+30"]

1. d4 {[%emt 0:00:03]} Nf6 {[%emt 0:00:07]} 2. Bf4 {[%emt 0:00:05]} d5 {[%emt 0:00:31]} 3. e3 {[%emt 0:00:07]} e6 {[%emt 0:00:33]} 4. Nf3 {[%emt 0:00:06]} Bd6 {[%emt 0:00:30]} 5. Bg3 {[%emt 0:00:30]} O-O {[%emt 0:00:30]} 6. Nbd2 {[%emt 0:00:30]} b6 {[%emt 0:00:30]} 7. Ne5 {[%emt 0:00:30]} Bb7 {[%emt 0:01:59]} 8. Bd3 {[%emt 0:01:34]} c5 {[%emt 0:00:40]} 9. c3 {[%emt 0:00:06]} Nc6 {[%emt 0:00:30]} 10. O-O {[%emt 0:00:30]} Qc7 {[%emt 0:00:30]} 11. f4 {[%emt 0:00:30]} Ne7 {[%emt 0:00:30]} 12. Qf3 {[%emt 0:00:30]} Nf5 {[%emt 0:00:30]} 13. Bf2 {[%emt 0:00:30]} Be7 {[%emt 0:00:30]} 14. Ng4 {[%emt 0:00:30]} Nxg4 {[%emt 0:00:30]} 15. Qxg4 {[%emt 0:00:30]} Qc8 {[%emt 0:14:59]} 16. Qe2 {[%emt 0:40:43]} a5 {[%emt 0:05:52]} 17. Rac1 {[%emt 0:06:00]} Rd8 {[%emt 0:12:32]} 18. Rfd1 {[%emt 0:06:53]} Qc7 {[%emt 0:05:58]} 19. Qh5 {[%emt 0:08:42]} g6 {[%emt 0:04:18]} 20. Qh3 {[%emt 0:01:55]} Ba6 {[%emt 0:00:30]} 21. Bb1 {[%emt 0:00:30]} h5 {[%emt 0:00:30]} 22. Nf3 {[%emt 0:00:30]} Kg7 {[%emt 0:15:56]} 23. Ne5 {[%emt 0:07:30]} Rac8 {[%emt 0:05:35]} 24. g4 {[%emt 0:06:25]} hxg4 {[%emt 0:00:30]} 25. Qxg4 {[%emt 0:00:30]} Rh8 {[%emt 0:02:30]} 26. e4 {[%emt 0:06:09]} dxe4 {[%emt 0:01:41]} 27. Bxe4 {[%emt 0:01:02]} cxd4 {[%emt 0:07:54]} 28. Bxf5 {[%emt 0:06:35]} exf5 {[%emt 0:00:30]} 29. Qf3 {[%emt 0:00:30]} Bb7 {[%emt 0:04:23]} 30. Qe2 {[%emt 0:00:49]} Rxh2 {[%emt 0:00:30]} 31. Nf3 {[%emt 0:00:30]} Rh3 {[%emt 0:00:30]} 32. Bxd4+ {[%emt 0:00:30]} Kg8 {[%emt 0:00:30]} 33. Qe5 {[%emt 0:00:30]} Rg3+ {[%emt 0:00:30]} 34. Kh2 {[%emt 0:00:30]} Qxe5 {[%emt 0:00:30]} 35. Nxe5 {[%emt 0:00:30]} Rg2+ {[%emt 0:00:30]} 36. Kh3 {[%emt 0:00:30]} f6 {[%emt 0:00:30]} 37. Nd7 {[%emt 0:00:30]} Kf7 {[%emt 0:00:30]} 38. Rg1 {[%emt 0:00:30]} Rh8# {[%emt 0:00:30]} 0-1